bitfinex/quotes_BTCUSD_20230106
["timestamp","ask_amount","ask_price","bid_price","bid_amount"]
[1673016439128,1.14063839,16743.0,16742.0,0.556784]
[1673016439355,1.14063839,16743.0,16742.0,0.612784]
[1673016440457,1.31870919,16743.0,16742.0,0.667804]
[1673016440719,1.31870919,16743.0,16742.0,0.056]
[1673016440963,1.76387262,16743.0,16742.0,0.056]
[1673016441226,1.31870919,16743.0,16742.0,0.056]
[1673016441448,1.49677456,16743.0,16742.0,0.056]
[1673016442046,1.31880044,16743.0,16742.0,0.056]
[1673016442768,0.62673298,16743.0,16742.0,0.6533]
[1673016443019,0.44877183,16743.0,16742.0,1.265104]
[1673016444305,0.62673298,16743.0,16742.0,0.667804]
[1673016444584,1.07195703,16743.0,16742.0,0.667804]
[1673016444834,0.96627216,16743.0,16742.0,0.667804]
[1673016445100,0.96627216,16743.0,16742.0,0.6533]
[1673016445369,0.7446232,16743.0,16742.0,0.6533]
[1673016445608,0.92287799,16743.0,16742.0,0.6533]
[1673016445929,0.5667364,16743.0,16742.0,1.2506]
[1673016446393,0.5667364,16743.0,16742.0,1.90938746]
[1673016446676,0.7446232,16743.0,16742.0,2.52119146]
[1673016447196,0.7446232,16743.0,16742.0,1.92389146]
[1673016447915,1.18978663,16743.0,16742.0,1.92389146]
[1673016448165,0.7446232,16743.0,16742.0,1.92389146]
[1673016448441,0.6269232,16743.0,16742.0,1.92389146]
[1673016449199,1.07208663,16743.0,16742.0,1.32659146]
[1673016449461,1.07214568,16743.0,16742.0,1.32659146]
[1673016449719,0.62698225,16743.0,16742.0,2.52119146]
[1673016449964,0.62698225,16743.0,16742.0,1.92389146]
[1673016450472,0.62698225,16743.0,16742.0,2.52119146]
[1673016451286,0.80528439,16743.0,16742.0,2.52119146]
[1673016451808,0.4491428,16743.0,16742.0,2.52119146]
[1673016453356,0.62698225,16743.0,16742.0,2.52119146]
[1673016454400,0.62698225,16743.0,16742.0,1.92389146]
[1673016454959,0.62698225,16743.0,16742.0,2.52119146]
[1673016455454,0.44914191,16743.0,16742.0,2.52119146]
[1673016455724,0.44914191,16743.0,16742.0,2.82119146]
[1673016455961,0.44914191,16743.0,16742.0,2.82111584]
[1673016456233,0.18170333,16743.0,16742.0,2.82111584]
[1673016456740,0.18170333,16743.0,16742.0,3.41841584]
[1673016457518,0.18170333,16743.0,16742.0,2.82111584]
[1673016457791,0.44914191,16743.0,16742.0,2.52111584]
[1673016459580,0.62698225,16743.0,16742.0,1.32651584]
[1673016460332,0.62698225,16743.0,16742.0,1.31201184]
[1673016460833,0.62698225,16743.0,16742.0,2.52111584]
[1673016461894,0.44913715,16743.0,16742.0,2.52111584]
[1673016465468,0.44913715,16743.0,16742.0,3.41841584]
[1673016465974,0.44913715,16743.0,16742.0,3.11841584]
[1673016467260,0.44913715,16743.0,16742.0,3.41841584]
[1673016467740,0.44913715,16743.0,16742.0,2.52111584]
[1673016468540,0.62698225,16743.0,16742.0,2.52111584]
[1673016469810,0.44920259,16743.0,16742.0,2.82111584]
[1673016470061,0.62698225,16743.0,16742.0,2.52111584]
[1673016470336,0.62698225,16743.0,16742.0,2.82111584]
[1673016470597,0.80534357,16743.0,16742.0,3.41841584]
[1673016470840,0.80536189,16743.0,16742.0,3.41841584]
[1673016471145,0.4492203,16743.0,16742.0,3.96317596]
[1673016471402,0.4492203,16743.0,16742.0,3.41841584]
[1673016471686,0.4492203,16743.0,16742.0,3.96317596]
[1673016471938,0.80536189,16743.0,16742.0,3.11841584]
[1673016472196,0.62698225,16743.0,16742.0,3.11841584]
[1673016472723,0.62698225,16743.0,16742.0,2.52111584]
[1673016473535,0.62698225,16743.0,16742.0,3.06587596]
[1673016473801,0.62698225,16743.0,16742.0,1.35086136]
[1673016473802,0.27084066,16743.0,16742.0,1.35086136]
[1673016474042,0.62698225,16743.0,16742.0,0.73905736]
[1673016474363,0.49245975,16743.0,16742.0,0.73905736]
[1673016474632,0.84919345,16743.0,16742.0,1.35086136]
[1673016474872,0.84919523,16743.0,16742.0,1.35086136]
[1673016475392,0.84919523,16743.0,16742.0,0.73905736]
[1673016475931,0.84919523,16743.0,16742.0,1.35086136]
[1673016477000,0.62767135,16743.0,16742.0,1.35086136]
[1673016477492,0.62767135,16743.0,16742.0,1.94816136]
[1673016478744,0.44930416,16743.0,16742.0,1.94816136]
[1673016479000,0.80603786,16743.0,16742.0,1.94816136]
[1673016479273,0.62767135,16743.0,16742.0,1.94816136]
[1673016479776,0.80529921,16743.0,16742.0,1.29541134]
[1673016480030,0.84919304,16743.0,16742.0,1.29541134]
[1673016480555,0.49245934,16743.0,16742.0,0.73893834]
[1673016480850,0.23113591,16743.0,16742.0,0.73893834]
[1673016481078,0.49319325,16743.0,16742.0,0.73893834]
[1673016483106,0.04729591,16743.0,16742.0,0.73893834]
[1673016483354,0.23113591,16743.0,16742.0,0.73893834]
[1673016484744,0.76534829,16743.0,16742.0,0.05580536]
[1673016484863,2.47358766,16743.0,16742.0,0.05580536]
[1673016485110,3.08539166,16743.0,16742.0,0.05580536]
[1673016485627,2.64658646,16743.0,16742.0,0.05580536]
[1673016485898,3.30934914,16743.0,16742.0,0.05580536]
[1673016486138,3.30926081,16743.0,16742.0,0.05580536]
[1673016486394,2.77504843,16743.0,16742.0,0.05580536]
[1673016486655,3.06874509,16743.0,16742.0,0.05580536]
[1673016486921,3.2310672,16743.0,16742.0,0.05580536]
[1673016487688,0.4,16742.0,16738.0,0.62952666]
[1673016487950,0.44526371,16739.0,16738.0,0.62967666]
[1673016488205,0.6829416,16739.0,16738.0,0.62967666]
[1673016488515,0.44526371,16739.0,16738.0,0.00015]
[1673016488719,1.70899586,16739.0,16738.0,0.00015]
[1673016488976,1.926318,16739.0,16738.0,0.00315]
[1673016489496,2.37100665,16739.0,16738.0,0.00315]
[1673016489792,2.37100665,16739.0,16738.0,0.003]
[1673016489983,2.97334714,16739.0,16738.0,0.003]
[1673016491240,3.32899175,16739.0,16738.0,0.003]
[1673016491521,1.76378756,16739.0,16738.0,0.003]
[1673016491772,1.16638056,16739.0,16738.0,0.003]
[1673016492357,0.17973889,16739.0,16738.0,0.68924579]
[1673016492547,0.17973889,16739.0,16738.0,0.003]
[1673016492804,0.44634007,16739.0,16738.0,0.003]
[1673016493060,0.80198468,16739.0,16738.0,0.003]
[1673016493338,0.44634007,16739.0,16738.0,0.003]
[1673016493874,0.002,16739.0,16738.0,0.60632507]
[1673016495121,0.002,16739.0,16738.0,0.003]
[1673016495382,0.36357889,16739.0,16738.0,0.003]
[1673016495906,1.03367118,16739.0,16738.0,0.003]
[1673016496688,0.85593229,16739.0,16738.0,0.003]
[1673016497209,1.63107818,16739.0,16738.0,0.003]
[1673016497515,2.49508636,16739.0,16738.0,0.003]
[1673016497795,3.10689036,16739.0,16738.0,0.003]
[1673016498051,2.49508636,16739.0,16738.0,0.003]
[1673016498305,3.10689036,16739.0,16738.0,0.003]
[1673016498552,2.49508636,16739.0,16738.0,0.003]
[1673016498813,1.63107818,16739.0,16738.0,0.003]
[1673016499856,1.45333929,16739.0,16738.0,0.003]
[1673016500334,1.63107818,16739.0,16738.0,0.003]
[1673016500595,1.45333929,16739.0,16738.0,0.003]
[1673016501107,0.67209229,16739.0,16738.0,0.65871974]
[1673016501613,0.002,16739.0,16738.0,0.65871974]
[1673016502909,0.002,16739.0,16738.0,3.36378965]
[1673016503148,0.002,16739.0,16738.0,3.76378965]
[1673016503659,0.002,16739.0,16738.0,4.36123165]
[1673016503943,0.85959079,16742.0,16738.0,3.84384012]
[1673016504164,0.85959079,16742.0,16739.0,1.40149512]
[1673016504440,0.85959079,16742.0,16740.0,1.011725]
[1673016504676,0.85959079,16742.0,16741.0,0.556666]
[1673016504947,0.85959079,16742.0,16740.0,0.4]
[1673016505472,0.85959079,16742.0,16740.0,0.93958898]
[1673016505725,1.12619197,16742.0,16741.0,0.71417535]
[1673016506236,1.12619197,16742.0,16740.0,1.09508431]
[1673016506237,1.72349197,16742.0,16740.0,1.09508431]
[1673016506504,0.17755481,16741.0,16740.0,1.09508431]
[1673016506742,0.17755481,16741.0,16739.0,0.997383]
[1673016506743,0.82701008,16741.0,16739.0,0.4]
[1673016506999,1.69094626,16741.0,16739.0,1.00557118]
[1673016507527,2.28828126,16741.0,16739.0,1.00557118]
[1673016507865,2.29028126,16741.0,16739.0,1.00557118]
[1673016508820,0.17755481,16740.0,16739.0,1.00557118]
[1673016509355,1.69297226,16741.0,16739.0,1.00557118]
[1673016509613,1.09361126,16741.0,16740.0,0.51169005]
[1673016509877,0.82701008,16741.0,16740.0,0.51169005]
[1673016510135,0.17755481,16741.0,16740.0,0.51169005]
[1673016510948,0.17955481,16741.0,16740.0,0.51169005]
[1673016511213,1.3971156,16742.0,16740.0,0.51169005]
[1673016511471,0.17755481,16741.0,16740.0,0.51169005]
[1673016511742,0.17955481,16741.0,16740.0,0.51469005]
[1673016512992,0.44615599,16741.0,16740.0,0.51469005]
[1673016513491,0.8018006,16741.0,16740.0,0.51469005]
[1673016513750,0.8018006,16741.0,16740.0,0.003]
[1673016513751,1.22158079,16741.0,16740.0,0.003]
[1673016514014,2.59319141,16741.0,16740.0,0.003]
[1673016514307,3.20499541,16741.0,16740.0,0.003]
[1673016515008,2.59319141,16741.0,16740.0,0.003]
[1673016516535,2.2375468,16741.0,16740.0,0.003]
[1673016517040,1.81779529,16741.0,16740.0,0.5213659]
[1673016517552,2.26248394,16741.0,16740.0,0.5213659]
[1673016518064,1.99578913,16741.0,16740.0,0.5213659]
[1673016518840,1.99605109,16741.0,16740.0,0.5213659]
[1673016519338,1.39986294,16741.0,16740.0,0.5213659]
[1673016519583,0.80252794,16741.0,16740.0,0.5213659]
[1673016519827,0.62474875,16741.0,16740.0,0.5213659]
[1673016520090,0.44685387,16741.0,16740.0,1.7305409]
[1673016520326,0.44685387,16741.0,16740.0,1.1331699]
[1673016521648,0.80269316,16741.0,16740.0,1.1331699]
[1673016521894,0.80269316,16741.0,16740.0,0.5213659]
[1673016521895,0.80252794,16741.0,16740.0,0.5213659]
[1673016522163,1.39986294,16741.0,16740.0,0.003]
[1673016522431,2.38102698,16741.0,16740.0,0.003]
[1673016522680,1.76922298,16741.0,16740.0,0.003]
[1673016522941,2.38102698,16741.0,16740.0,0.003]
[1673016523335,1.76922298,16741.0,16740.0,0.003]
[1673016523545,2.21419378,16741.0,16740.0,0.003]
[1673016523779,1.61685878,16741.0,16740.0,0.003]
[1673016524471,1.17188798,16741.0,16740.0,0.003]
[1673016524956,1.61685838,16741.0,16740.0,0.003]
[1673016525165,1.17188798,16741.0,16740.0,0.003]
[1673016526074,0.002,16741.0,16740.0,0.61965414]
[1673016526283,0.4470474,16741.0,16740.0,0.61965414]
[1673016527448,0.80308079,16741.0,16740.0,0.61965414]
[1673016527902,0.80308079,16741.0,16740.0,0.69965414]
[1673016529724,1.07015413,16741.0,16740.0,0.69965414]
[1673016529956,1.07015413,16741.0,16740.0,1.29702514]
[1673016530197,0.62510673,16741.0,16740.0,1.29702514]
[1673016530413,0.62510673,16741.0,16740.0,1.90882914]
[1673016530414,0.80316493,16741.0,16740.0,1.90882914]
[1673016530631,0.62504016,16741.0,16740.0,1.90882914]
[1673016531724,0.62504016,16741.0,16740.0,1.31145814]
[1673016531725,0.80301422,16741.0,16740.0,1.31145814]
[1673016532438,0.44698083,16741.0,16740.0,0.69965414]
[1673016536197,0.80331644,16741.0,16740.0,0.69965414]
[1673016536432,0.80331644,16741.0,16740.0,1.29702514]
[1673016537917,0.80331644,16741.0,16740.0,1.277742]
[1673016538181,0.44746934,16741.0,16740.0,3.43770109]
[1673016538478,0.44746934,16741.0,16740.0,3.13770109]
[1673016538965,0.44746934,16741.0,16740.0,2.59294097]
[1673016539210,0.44553591,16741.0,16740.0,2.58994097]
[1673016539487,0.44553591,16741.0,16740.0,2.71994097]
[1673016539755,0.62365545,16741.0,16740.0,2.71994097]
[1673016539978,0.445559,16741.0,16740.0,2.71994097]
[1673016541257,0.445559,16741.0,16740.0,3.01994097]
[1673016541509,0.445559,16741.0,16740.0,3.45867712]
[1673016541769,0.17823916,16741.0,16740.0,4.19448899]
[1673016542026,0.445559,16741.0,16740.0,4.19448899]
[1673016543067,0.17823916,16741.0,16740.0,4.19448899]
[1673016543610,0.17823916,16741.0,16740.0,3.64972887]
[1673016543844,0.17823916,16741.0,16740.0,4.19448899]
[1673016544080,0.62365545,16742.0,16741.0,0.4]
[1673016544081,0.445559,16742.0,16741.0,0.4]
[1673016544354,0.17823916,16742.0,16741.0,2.99601712]
[1673016544589,0.445559,16742.0,16741.0,2.748592]
[1673016545334,0.445559,16742.0,16741.0,2.805592]
[1673016546078,0.17823916,16742.0,16741.0,2.805592]
[1673016546370,0.17823916,16742.0,16741.0,3.105592]
[1673016546609,0.445559,16742.0,16741.0,3.42418384]
[1673016546859,0.17823916,16742.0,16741.0,3.72418384]
[1673016547121,0.17823916,16742.0,16741.0,4.26894396]
[1673016547619,0.17823916,16742.0,16741.0,3.72418384]
[1673016547902,0.17823916,16742.0,16741.0,3.42418384]
[1673016548440,0.17823916,16742.0,16741.0,4.26894396]
[1673016548981,0.18155291,16743.0,16742.0,0.611727]
[1673016549235,0.00331375,16743.0,16742.0,3.36718712]
[1673016549474,0.00331375,16743.0,16742.0,3.88366888]
[1673016549980,0.00331375,16743.0,16742.0,3.36718712]
[1673016550472,0.00331375,16743.0,16742.0,3.76608712]
[1673016550716,0.00331375,16743.0,16742.0,4.56884559]
[1673016550976,0.00331375,16743.0,16742.0,3.90608712]
[1673016551475,0.00331375,16743.0,16742.0,4.5604526]
[1673016552755,0.00331375,16743.0,16742.0,4.2604526]
[1673016553007,0.00331375,16743.0,16742.0,3.60608712]
[1673016553244,0.00331375,16743.0,16742.0,4.58494955]
[1673016554042,0.00331375,16743.0,16742.0,4.46724955]
[1673016554284,0.00331375,16743.0,16742.0,3.56994955]
[1673016554541,0.00331375,16743.0,16742.0,3.02518943]
[1673016555050,0.18155291,16743.0,16742.0,1.41616243]
[1673016555560,0.18155291,16743.0,16742.0,2.02796643]
[1673016555561,0.00331375,16743.0,16742.0,2.02796643]
[1673016556087,0.18155291,16743.0,16742.0,1.41616243]
[1673016556603,0.18155291,16743.0,16742.0,1.43066643]
[1673016556870,0.00331375,16743.0,16742.0,1.43066643]
[1673016557127,0.00331375,16743.0,16742.0,2.02796643]
[1673016558170,0.00331375,16743.0,16742.0,2.62526643]
[1673016560153,0.00331375,16743.0,16742.0,4.06732655]
[1673016560645,0.00331375,16743.0,16742.0,3.22256643]
[1673016561152,0.00331375,16743.0,16742.0,2.62526643]
[1673016561403,0.18155291,16743.0,16742.0,2.62526643]
[1673016561679,0.18155291,16743.0,16742.0,2.02796643]
[1673016561954,0.44887275,16743.0,16742.0,1.41616243]
[1673016562755,0.44887275,16743.0,16742.0,1.41604564]
[1673016563272,0.44887275,16743.0,16742.0,0.13988321]
[1673016563531,0.6269692,16743.0,16742.0,0.13988321]
[1673016563786,0.80469676,16743.0,16742.0,0.13988321]
[1673016564030,2.08255034,16743.0,16742.0,0.13988321]
[1673016564269,2.69435434,16743.0,16742.0,0.13988321]
[1673016565516,1.72621473,16743.0,16742.0,0.13988321]
[1673016565786,1.48481439,16743.0,16742.0,0.13988321]
[1673016566279,2.33801873,16743.0,16742.0,0.13988321]
[1673016566828,1.72621473,16743.0,16742.0,0.13988321]
[1673016567292,1.12895073,16743.0,16742.0,0.13988321]
[1673016567579,1.48485099,16743.0,16742.0,0.13988321]
[1673016568857,0.80426141,16743.0,16742.0,0.13988321]
[1673016569404,0.62615187,16743.0,16742.0,0.13988321]
[1673016569669,1.07119927,16743.0,16742.0,1.42631041]
[1673016569905,0.62615187,16743.0,16742.0,1.42631041]
[1673016570167,0.62615187,16743.0,16742.0,0.82901041]
[1673016570449,0.80426141,16743.0,16742.0,0.82901041]
[1673016571468,1.60455893,16743.0,16742.0,0.82901041]
[1673016571765,1.24865867,16743.0,16742.0,0.82901041]
[1673016572209,1.24865867,16743.0,16742.0,0.6891272]
[1673016572471,1.04562515,16743.0,16742.0,0.7511272]
[1673016572756,1.04562515,16743.0,16742.0,0.6891272]
[1673016573051,1.65288915,16743.0,16742.0,0.6921272]
[1673016573303,1.65288915,16743.0,16742.0,0.003]
[1673016573586,1.81964575,16743.0,16742.0,0.003]
[1673016575084,0.61057775,16743.0,16742.0,0.003]
[1673016575335,1.05565308,16743.0,16742.0,0.003]
[1673016575582,0.61057775,16743.0,16742.0,0.003]
[1673016576069,0.45849324,16743.0,16742.0,0.67359988]
[1673016577604,0.44849324,16743.0,16742.0,0.67059988]
[1673016577870,0.45549324,16743.0,16742.0,0.67059988]
[1673016578134,0.44849324,16743.0,16742.0,0.67059988]
[1673016578367,0.45849324,16743.0,16742.0,0.67359988]
[1673016581691,0.44849324,16743.0,16742.0,0.67059988]
[1673016582007,0.45549324,16743.0,16742.0,0.67059988]
[1673016582222,0.00331375,16743.0,16742.0,0.67059988]
[1673016582467,0.01331375,16743.0,16742.0,0.67359988]
[1673016584741,0.70809099,16743.0,16742.0,0.67359988]
[1673016585010,1.30535499,16743.0,16742.0,0.67359988]
[1673016585262,1.60913105,16743.0,16742.0,0.67359988]
[1673016585513,1.60913105,16743.0,16742.0,0.67348285]
[1673016585823,1.30527496,16743.0,16742.0,0.67348285]
[1673016586317,0.61049772,16743.0,16742.0,0.67348285]
[1673016586586,0.45839923,16743.0,16742.0,0.67348285]
[1673016586842,0.81454864,16743.0,16742.0,0.67348285]
[1673016587163,0.81454864,16743.0,16742.0,1.27078285]
[1673016587893,0.80454864,16743.0,16742.0,1.26778285]
[1673016588148,0.80454864,16743.0,16742.0,0.67048285]
[1673016588149,0.81154864,16743.0,16742.0,0.67048285]
[1673016588419,0.80454864,16743.0,16742.0,0.67048285]
[1673016588670,0.81454864,16743.0,16742.0,0.67348285]
[1673016589937,0.45839923,16743.0,16742.0,0.67348285]
[1673016592296,0.8147158,16743.0,16742.0,0.67348285]
[1673016592482,0.8147146,16743.0,16742.0,0.67348285]
[1673016592739,0.81470775,16743.0,16742.0,0.67348285]
[1673016593224,0.45839923,16743.0,16742.0,0.67348285]
[1673016595782,0.01323372,16743.0,16742.0,0.67348285]
[1673016597588,0.45876264,16743.0,16742.0,1.27078285]
[1673016598645,0.81522595,16743.0,16742.0,1.27078285]
[1673016598893,0.81522595,16743.0,16742.0,1.86808285]
[1673016599143,0.81522595,16743.0,16742.0,3.02464697]
[1673016599643,0.81522595,16743.0,16742.0,2.41284297]
[1673016599899,0.81522595,16743.0,16742.0,1.86808285]
[1673016601699,0.81522595,16743.0,16742.0,2.41284297]
[1673016601974,0.63711788,16743.0,16742.0,3.02464697]
[1673016602481,1.0826468,16743.0,16742.0,2.47988685]
[1673016602719,0.81522595,16743.0,16742.0,1.88258685]
[1673016602979,0.81522595,16743.0,16742.0,1.27078285]
[1673016603809,0.81522595,16743.0,16742.0,0.67348285]
[1673016603999,0.45876264,16743.0,16742.0,0.67348285]
[1673016604509,0.19707372,16743.0,16742.0,0.67348285]
[1673016605048,0.80887772,16743.0,16742.0,0.67348285]
[1673016605312,1.40614172,16743.0,16742.0,0.67348285]
[1673016606355,0.62503772,16743.0,16742.0,0.67348285]
[1673016606871,0.01323372,16743.0,16742.0,0.67348285]
[1673016608679,0.61049772,16743.0,16742.0,0.67348285]
[1673016609478,0.01323372,16743.0,16742.0,0.67348285]
[1673016610735,0.45879023,16743.0,16742.0,0.67336512]
[1673016612960,0.45879023,16743.0,16742.0,1.27066512]
[1673016613472,0.81526945,16743.0,16742.0,1.27066512]
[1673016615747,0.45879023,16743.0,16742.0,1.27066512]
[1673016615984,0.45879023,16743.0,16742.0,0.67336512]
[1673016616244,0.01323372,16743.0,16742.0,0.67336512]
[1673016617292,0.45879371,16743.0,16742.0,0.67336512]
[1673016617543,0.01323372,16743.0,16742.0,0.67336512]
[1673016619606,0.45881397,16743.0,16742.0,0.67336512]
[1673016620930,0.81530841,16743.0,16742.0,1.86796512]
[1673016621174,1.08267837,16743.0,16742.0,3.32452924]
[1673016621425,0.63709812,16743.0,16742.0,3.32452924]
[1673016621695,0.63709812,16743.0,16742.0,3.92182924]
[1673016623228,0.63709812,16743.0,16742.0,3.02452924]
[1673016623482,0.63709812,16743.0,16742.0,1.86796512]
[1673016623750,0.81530841,16743.0,16742.0,1.86796512]
[1673016624757,0.81530841,16743.0,16742.0,2.47976912]
[1673016625007,1.08263956,16743.0,16742.0,2.47976912]
[1673016625547,0.63707948,16743.0,16742.0,2.47976912]
[1673016626564,0.81530841,16743.0,16742.0,1.86796512]
[1673016627089,0.45881397,16743.0,16742.0,1.27066512]
[1673016627339,0.45881397,16743.0,16742.0,0.67336512]
[1673016627589,0.18032372,16743.0,16742.0,0.67336512]
[1673016627850,0.77758772,16743.0,16742.0,0.67336512]
[1673016628186,0.01323372,16743.0,16742.0,0.67336512]
[1673016629439,0.45880888,16743.0,16742.0,0.67336512]
[1673016629970,0.01323372,16743.0,16742.0,0.67336512]
[1673016631042,0.45880053,16743.0,16742.0,0.67336512]
[1673016631301,0.45880053,16743.0,16742.0,1.27066512]
[1673016631517,0.45880585,16743.0,16742.0,1.27066512]
[1673016631806,0.45880585,16743.0,16742.0,0.67336512]
[1673016632100,0.01323372,16743.0,16742.0,0.67336512]
[1673016633165,0.61049772,16743.0,16742.0,0.69688896]
[1673016633945,1.14471727,16743.0,16742.0,0.69688896]
[1673016634181,1.74198127,16743.0,16742.0,0.69688896]
[1673016634444,2.35378527,16743.0,16742.0,0.02660366]
[1673016634990,2.86949152,16743.0,16742.0,0.02660366]
[1673016637016,1.75652127,16743.0,16742.0,0.02660366]
[1673016637270,0.01313682,16743.0,16742.0,0.6821462]
[1673016637544,0.01313682,16743.0,16742.0,0.6771462]
[1673016637545,0.45860294,16743.0,16742.0,0.6771462]
[1673016637791,0.45860294,16743.0,16742.0,1.2744462]
[1673016638683,0.81499356,16743.0,16742.0,1.2744462]
[1673016638854,0.45860294,16743.0,16742.0,1.2744462]
[1673016641414,0.81504833,16743.0,16742.0,3.32831032]
[1673016641681,0.63692901,16743.0,16742.0,3.32831032]
[1673016641937,0.6368551,16743.0,16742.0,3.02831032]
[1673016642172,0.81497442,16743.0,16742.0,2.4835502]
[1673016643810,0.45866817,16743.0,16742.0,3.33300125]
[1673016644015,0.45866817,16743.0,16742.0,4.38341851]
[1673016644016,0.01306291,16743.0,16742.0,4.38341851]
[1673016644277,0.01306291,16743.0,16742.0,5.08341851]
[1673016644801,0.00306291,16743.0,16742.0,4.90466778]
[1673016645080,0.00406291,16743.0,16742.0,5.04212109]
[1673016646366,0.00406291,16743.0,16742.0,5.22087182]
[1673016647110,0.00358919,16744.0,16743.0,0.4]
[1673016647379,0.00358919,16744.0,16743.0,4.34899112]
[1673016647641,0.00358919,16744.0,16743.0,4.64899112]
[1673016648674,0.00358919,16744.0,16743.0,4.78799112]
[1673016648675,0.00458919,16744.0,16743.0,4.78799112]
[1673016649230,0.00458919,16744.0,16743.0,5.78799112]
[1673016650290,0.00458919,16744.0,16743.0,6.77284185]
[1673016651063,0.00458919,16744.0,16743.0,6.59409112]
[1673016651611,0.00358919,16744.0,16743.0,6.45509112]
[1673016651828,0.00358919,16744.0,16743.0,6.59409112]
[1673016652895,0.00358919,16744.0,16743.0,6.41659112]
[1673016653413,0.00358919,16744.0,16743.0,5.41659112]
[1673016653658,0.00358919,16744.0,16743.0,6.41659112]
[1673016654136,0.00358919,16744.0,16743.0,6.59534185]
[1673016654934,0.00381737,16745.0,16744.0,0.79199]
[1673016655198,0.00381737,16745.0,16744.0,7.88460484]
[1673016655444,0.00381737,16745.0,16744.0,8.76538025]
[1673016655704,0.00381737,16745.0,16744.0,9.18548025]
[1673016655956,0.00381737,16745.0,16744.0,9.78548025]
[1673016656229,0.00381737,16745.0,16744.0,9.18548025]
[1673016656515,0.00381737,16745.0,16744.0,8.1741775]
[1673016657264,0.00381737,16745.0,16744.0,7.99562594]
[1673016657522,0.00381737,16745.0,16744.0,7.52195394]
[1673016658583,0.00381737,16745.0,16744.0,6.45215394]
[1673016660614,0.00381737,16745.0,16744.0,6.77263243]
[1673016660876,0.00381737,16745.0,16744.0,5.96605394]
[1673016661118,0.00381737,16745.0,16744.0,5.54595394]
[1673016661375,0.00381737,16745.0,16744.0,6.07819416]
[1673016661648,0.00381737,16745.0,16744.0,5.45059416]
[1673016662145,0.00381737,16745.0,16744.0,4.90583404]
[1673016662662,0.00381737,16745.0,16744.0,4.30860604]
[1673016663468,0.00381737,16745.0,16744.0,3.70780604]
[1673016663984,0.00381737,16745.0,16744.0,4.12823404]
[1673016664458,0.00381737,16745.0,16744.0,3.72823404]
[1673016664736,0.00381737,16745.0,16744.0,3.13100604]
[1673016665478,0.00381737,16745.0,16744.0,3.72823404]
[1673016665720,0.00381737,16745.0,16744.0,4.27299416]
[1673016666296,0.00381737,16745.0,16744.0,3.67576616]
[1673016666556,0.00381737,16745.0,16744.0,3.13100604]
[1673016666826,0.00381737,16745.0,16744.0,4.27299416]
[1673016668673,0.00381737,16745.0,16744.0,4.09319416]
[1673016669222,0.00381737,16745.0,16744.0,3.56095394]
[1673016669479,0.00381737,16745.0,16744.0,4.26095394]
[1673016670177,0.00381737,16745.0,16744.0,5.61635394]
[1673016675221,0.0037146,16745.0,16744.0,5.61635394]
[1673016676023,0.0037146,16745.0,16744.0,5.79455394]
[1673016677092,1e-08,16746.0,16745.0,0.4]
[1673016677335,1e-08,16746.0,16745.0,5.21675837]
[1673016678104,1e-08,16746.0,16745.0,5.81765837]
[1673016678346,1e-08,16746.0,16745.0,5.24900812]
[1673016679394,1e-08,16746.0,16745.0,6.20630853]
[1673016680194,1e-08,16746.0,16745.0,5.56655968]
[1673016680727,1e-08,16746.0,16745.0,7.34444323]
[1673016680977,1e-08,16746.0,16745.0,7.36740389]
[1673016681826,1e-08,16746.0,16745.0,7.55485378]
[1673016682368,0.00453447,16747.0,16746.0,5.999e-05]
[1673016682627,0.00507019,16748.0,16747.0,1.19293953]
[1673016682933,7.019e-05,16748.0,16747.0,8.06460724]
[1673016683227,0.00408802,16749.0,16748.0,1.0276]
[1673016683500,0.0044389,16752.0,16748.0,8.32269229]
[1673016683745,0.0044389,16752.0,16750.0,4.21149587]
[1673016683995,0.0044389,16752.0,16750.0,8.61640801]
[1673016684249,0.0044389,16752.0,16750.0,6.21681212]
[1673016684498,0.0044389,16752.0,16750.0,6.61681212]
[1673016684755,0.0044389,16752.0,16750.0,7.31681212]
[1673016685002,0.0044389,16752.0,16750.0,7.49530799]
[1673016685781,0.0044389,16752.0,16750.0,8.22825566]
[1673016686285,0.0044389,16752.0,16750.0,8.04975979]
[1673016686536,0.0044389,16752.0,16750.0,8.46755979]
[1673016686845,8.3e-07,16751.0,16750.0,9.24605566]
[1673016687051,0.0044389,16752.0,16750.0,10.574425]
[1673016687327,0.0044389,16752.0,16751.0,2.79301712]
[1673016687556,0.0044389,16752.0,16751.0,4.68697512]
[1673016687809,0.0044389,16752.0,16751.0,5.29047512]
[1673016688817,0.0044389,16752.0,16751.0,6.06595412]
[1673016689084,0.0044389,16752.0,16751.0,6.20495412]
[1673016689596,0.0044389,16752.0,16751.0,6.80495412]
[1673016689847,0.00507799,16755.0,16751.0,6.80495412]
[1673016690102,0.00507799,16755.0,16754.0,0.3562]
[1673016690360,0.00507799,16755.0,16754.0,4.90743059]
[1673016690682,0.00507799,16755.0,16754.0,5.93503059]
[1673016690870,0.00507799,16755.0,16754.0,6.64009712]
[1673016691144,0.00507799,16755.0,16754.0,14.14000849]
[1673016691658,0.00507799,16755.0,16754.0,14.93395616]
[1673016692171,0.00507799,16755.0,16754.0,7.43395616]
[1673016692410,0.00507799,16755.0,16754.0,7.57295616]
[1673016693185,0.24275588,16755.0,16754.0,6.47900849]
[1673016693420,0.00507799,16755.0,16754.0,6.86764932]
[1673016693658,0.00507799,16755.0,16754.0,6.30089712]
[1673016693906,0.00507799,16755.0,16754.0,5.756137]
[1673016694161,0.00507799,16755.0,16754.0,6.30089712]
[1673016694884,0.00507799,16755.0,16754.0,7.25228853]
[1673016695153,0.00507799,16755.0,16754.0,6.60089712]
[1673016695649,0.00507799,16755.0,16754.0,7.60089712]
[1673016696991,0.00507799,16755.0,16754.0,7.97799712]
[1673016698255,0.00507799,16755.0,16754.0,6.97799712]
[1673016698481,0.00507799,16755.0,16754.0,7.79959712]
[1673016701284,0.00507799,16755.0,16754.0,6.79959712]
[1673016701523,0.00507799,16755.0,16754.0,7.79959712]
[1673016701775,0.00507799,16755.0,16754.0,7.23237618]
[1673016702037,0.00507799,16755.0,16754.0,6.42159712]
[1673016702753,0.00507799,16755.0,16754.0,7.06980341]
[1673016703005,0.00507799,16755.0,16754.0,5.37550341]
[1673016704016,0.00507799,16755.0,16754.0,3.83387129]
[1673016704782,0.00507799,16755.0,16754.0,3.69487129]
[1673016705029,0.00707799,16755.0,16754.0,3.83387129]
[1673016705294,0.00507799,16755.0,16754.0,3.99487129]
[1673016705543,0.00507799,16755.0,16754.0,4.13487129]
[1673016705544,0.00607799,16755.0,16754.0,4.13487129]
[1673016705855,0.00607799,16755.0,16754.0,3.27882229]
[1673016705856,0.74450807,16755.0,16754.0,3.27882229]
[1673016706060,0.74450807,16755.0,16754.0,1.98195029]
[1673016707330,0.57741807,16755.0,16754.0,1.98195029]
[1673016707577,0.00607799,16755.0,16754.0,2.57882229]
[1673016707846,0.00607799,16755.0,16754.0,2.28195029]